Workbook

Sheet Índice
C1: Anexos do Relatório de Gerenciamento de Riscos
D5: Clique no item para visualizar a planilha
B8: Tabelas de Composição de Capital
B12: CCA | C12: Principais características dos instrumentos que compõem o Patrimônio de Referência – PR
B14: CC1 | C14: Composição do Patrimônio de Referência – PR
B16: CC2 | C16: Conciliação do Patrimônio de Referência (PR) com o balanço patrimonial

Sheet CCA
B7: Principais características dos instrumentos que compõem o Patrimônio de Referência - PR (CCA) | AU7: Índice
B9: R$ Mil | D9: 1 | E9: 2 | F9: 3 | H9: 4 | I9: 5 | K9: 6 | L9: 7 | M9: 8 | O9: 9 | Q9: 10 | R9: 11 | S9: 12 | T9: 13 | U9: 14 | V9: 15 | W9: 16 | X9: 17 | Z9: 18 | AA9: 19 | AB9: 20 | AC9: 21 | AD9: 22 | AE9: 23 | AF9: 24 | AG9: 25 | AH9: 26 | AI9: 27 | AJ9: 28 | AK9: 29 | AL9: 30 | AM9: 31 | AO9: 32 | AP9: 33 | AR9: 34a | AS9: 35 | AT9: 36 | AU9: 37
B10: Tipo | D10: Característica | X10: Remuneração / Dividendos
B11: Número da linha | D11: Emissor | E11: Identificador único | F11: Lei aplicável ao instrumento | H11: Classificação do instrumento como componente do PR durante o tratamento temporário de que trata o art. 28 da Resolução nº 4.192, de 2013. | I11: Classificação do instrumento como componente do PR após o tratamento temporário de que trata a linha anterior | K11: Escopo da elegibilidade do instrumento | L11: Tipo de instrumento | M11: Valor reconhecido no PR | O11: Valor de face do instrumento | Q11: Classificação contábil | R11: Data original de emissão | S11: Perpétuo ou com vencimento | T11: Data original de vencimento | U11: Opção de resgate ou recompra | V11: (1) Data de resgate ou recompra (2) Datas de resgate ou recompra condicionadas (3) Valor de resgate ou recompra | W11: Datas de resgate ou recompra subsequentes, se aplicável | X11: Remuneração ou dividendos fixos ou variáveis | Z11: Taxa de remuneração e índice referenciado | AA11: Possibilidade de suspensão de pagamento de dividendos | AB11: Completa discricionariedade, discricionariedade parcial ou mandatória | AC11: Existência de cláusulas que alterem prazos ou condições de remuneração pactuados ou outro incentivo para resgate | AD11: Cumulativo ou não cumulativo | AE11: Conversível ou não conversível | AF11: Se conversível, em quais situações | AG11: Se conversível, totalmente ou parcialmente | AH11: Se conversível, taxa de conversão | AI11: Se conversível, conversão obrigatória ou opcional | AJ11: Se conversível, especificar para qual tipo de instrumento | AK11: Se conversível, especificar o emissor do instrumento para o qual pode ser convertido | AL11: Características para a extinção do instrumento | AM11: Se extinguível, em quais situações | AO11: Se extinguível, totalmente ou parcialmente | AP11: Se extinguível, permanentemente ou temporariamente | AR11: Tipo de subordinação | AS11: Posição na hierarquia de subordinação em caso de liquidação | AT11: Possui características que não serão aceitas após o tratamento temporário de que trata o art. 28 da Resolução n° 4.192, de 2013 | AU11: Se sim, especificar as características de que trata a linha anterior
B12: 1 | D12: Sinosserra Financeira S/A | E12: LFSN2100E1Y | F12: Lei nº 12.249, de 11 de Junho de 2010 / Resolução CMN n° 4.955 de 21/10/2021 / Resolução CMN n° 5.007 de 24/3/2022 | H12: Nível II | I12: Não elegível | K12: Conglomerado | L12: Letra financeira | M12: 274,587.02 | O12: 833,666.67 | Q12: Passivo – custo amortizado | R12: 2021-12-23 | S12: Com vencimento | T12: 2026-12-23 | U12: Não | V12: N/A | W12: N/A | X12: Fixo | Z12: PRE 15% a.a | AA12: Não | AB12: Mandatório | AC12: Não | AD12: Cumulativo | AE12: Não conversível | AF12: N/A | AG12: N/A | AH12: N/A | AI12: N/A | AJ12: N/A | AK12: N/A | AL12: Sim | AM12: Serão extintos nas situações previstas no art. 20, inciso X, da Resolução CMN 4.192, de 01/03/2013 | AO12: Sempre será extinto na sua totalidade | AP12: Permanente | AR12: Contratual | AS12: Subordinado ao pagamento dos demais passivos da instituição emitente, com exceção do pagamento dos elementos que compõem o Capital Principal e o Capital Complementar. | AT12: Não | AU12: N/A
B13: 2 | D13: Sinosserra Financeira S/A | E13: LFSN2100E20 | F13: Lei nº 12.249, de 11 de Junho de 2010 / Resolução CMN n° 4.955 de 21/10/2021 / Resolução CMN n° 5.007 de 24/3/2022 | H13: Nível II | I13: Não elegível | K13: Conglomerado | L13: Letra financeira | M13: 197,623.60 | O13: 600,000.00 | Q13: Passivo – custo amortizado | R13: 2021-12-23 | S13: Com vencimento | T13: 2026-12-23 | U13: Não | V13: N/A | W13: N/A | X13: Fixo | Z13: PRE 15% a.a | AA13: Não | AB13: Mandatório | AC13: Não | AD13: Cumulativo | AE13: Não conversível | AF13: N/A | AG13: N/A | AH13: N/A | AI13: N/A | AJ13: N/A | AK13: N/A | AL13: Sim | AM13: Serão extintos nas situações previstas no art. 20, inciso X, da Resolução CMN 4.192, de 01/03/2014 | AO13: Sempre será extinto na sua totalidade | AP13: Permanente | AR13: Contratual | AS13: Subordinado ao pagamento dos demais passivos da instituição emitente, com exceção do pagamento dos elementos que compõem o Capital Principal e o Capital Complementar. | AT13: Não | AU13: N/A
B14: 3 | D14: Sinosserra Financeira S/A | E14: LFSN2100DWH | F14: Lei nº 12.249, de 11 de Junho de 2010 / Resolução CMN n° 4.955 de 21/10/2021 / Resolução CMN n° 5.007 de 24/3/2022 | H14: Nível II | I14: Não elegível | K14: Conglomerado | L14: Letra financeira | M14: 205,937.86 | O14: 625,000.00 | Q14: Passivo – custo amortizado | R14: 2021-12-22 | S14: Com vencimento | T14: 2026-12-22 | U14: Não | V14: N/A | W14: N/A | X14: Fixo | Z14: PRE 15% a.a | AA14: Não | AB14: Mandatório | AC14: Não | AD14: Cumulativo | AE14: Não conversível | AF14: N/A | AG14: N/A | AH14: N/A | AI14: N/A | AJ14: N/A | AK14: N/A | AL14: Sim | AM14: Serão extintos nas situações previstas no art. 20, inciso X, da Resolução CMN 4.192, de 01/03/2015 | AO14: Sempre será extinto na sua totalidade | AP14: Permanente | AR14: Contratual | AS14: Subordinado ao pagamento dos demais passivos da instituição emitente, com exceção do pagamento dos elementos que compõem o Capital Principal e o Capital Complementar. | AT14: Não | AU14: N/A
B15: 4 | D15: Sinosserra Financeira S/A | E15: LFSN2100DLB | F15: Lei nº 12.249, de 11 de Junho de 2010 / Resolução CMN n° 4.955 de 21/10/2021 / Resolução CMN n° 5.007 de 24/3/2022 | H15: Nível II | I15: Não elegível | K15: Conglomerado | L15: Letra financeira | M15: 197,777.11 | O15: 600,000.00 | Q15: Passivo – custo amortizado | R15: 2021-12-21 | S15: Com vencimento | T15: 2026-12-21 | U15: Não | V15: N/A | W15: N/A | X15: Fixo | Z15: PRE 15% a.a | AA15: Não | AB15: Mandatório | AC15: Não | AD15: Cumulativo | AE15: Não conversível | AF15: N/A | AG15: N/A | AH15: N/A | AI15: N/A | AJ15: N/A | AK15: N/A | AL15: Sim | AM15: Serão extintos nas situações previstas no art. 20, inciso X, da Resolução CMN 4.192, de 01/03/2016 | AO15: Sempre será extinto na sua totalidade | AP15: Permanente | AR15: Contratual | AS15: Subordinado ao pagamento dos demais passivos da instituição emitente, com exceção do pagamento dos elementos que compõem o Capital Principal e o Capital Complementar. | AT15: Não | AU15: N/A
B16: 5 | D16: Sinosserra Financeira S/A | E16: LFSN2100DFU | F16: Lei nº 12.249, de 11 de Junho de 2010 / Resolução CMN n° 4.955 de 21/10/2021 / Resolução CMN n° 5.007 de 24/3/2022 | H16: Nível II | I16: Não elegível | K16: Conglomerado | L16: Letra financeira | M16: 274,690.43 | O16: 833,333.33 | Q16: Passivo – custo amortizado | R16: 2021-12-21 | S16: Com vencimento | T16: 2026-12-21 | U16: Não | V16: N/A | W16: N/A | X16: Fixo | Z16: PRE 15% a.a | AA16: Não | AB16: Mandatório | AC16: Não | AD16: Cumulativo | AE16: Não conversível | AF16: N/A | AG16: N/A | AH16: N/A | AI16: N/A | AJ16: N/A | AK16: N/A | AL16: Sim | AM16: Serão extintos nas situações previstas no art. 20, inciso X, da Resolução CMN 4.192, de 01/03/2017 | AO16: Sempre será extinto na sua totalidade | AP16: Permanente | AR16: Contratual | AS16: Subordinado ao pagamento dos demais passivos da instituição emitente, com exceção do pagamento dos elementos que compõem o Capital Principal e o Capital Complementar. | AT16: Não | AU16: N/A
B17: 6 | D17: Sinosserra Financeira S/A | E17: LFSN2100DFT | F17: Lei nº 12.249, de 11 de Junho de 2010 / Resolução CMN n° 4.955 de 21/10/2021 / Resolução CMN n° 5.007 de 24/3/2022 | H17: Nível II | I17: Não elegível | K17: Conglomerado | L17: Letra financeira | M17: 123,610.69 | O17: 375,000.00 | Q17: Passivo – custo amortizado | R17: 2021-12-21 | S17: Com vencimento | T17: 2026-12-21 | U17: Não | V17: N/A | W17: N/A | X17: Fixo | Z17: PRE 15% a.a | AA17: Não | AB17: Mandatório | AC17: Não | AD17: Cumulativo | AE17: Não conversível | AF17: N/A | AG17: N/A | AH17: N/A | AI17: N/A | AJ17: N/A | AK17: N/A | AL17: Sim | AM17: Serão extintos nas situações previstas no art. 20, inciso X, da Resolução CMN 4.192, de 01/03/2018 | AO17: Sempre será extinto na sua totalidade | AP17: Permanente | AR17: Contratual | AS17: Subordinado ao pagamento dos demais passivos da instituição emitente, com exceção do pagamento dos elementos que compõem o Capital Principal e o Capital Complementar. | AT17: Não | AU17: N/A
B18: 7 | D18: Sinosserra Financeira S/A | E18: LFSN2100DLA | F18: Lei nº 12.249, de 11 de Junho de 2010 / Resolução CMN n° 4.955 de 21/10/2021 / Resolução CMN n° 5.007 de 24/3/2022 | H18: Nível II | I18: Não elegível | K18: Conglomerado | L18: Letra financeira | M18: 274,580.55 | O18: 833,000.00 | Q18: Passivo – custo amortizado | R18: 2021-12-21 | S18: Com vencimento | T18: 2026-12-21 | U18: Não | V18: N/A | W18: N/A | X18: Fixo | Z18: PRE 15% a.a | AA18: Não | AB18: Mandatório | AC18: Não | AD18: Cumulativo | AE18: Não conversível | AF18: N/A | AG18: N/A | AH18: N/A | AI18: N/A | AJ18: N/A | AK18: N/A | AL18: Sim | AM18: Serão extintos nas situações previstas no art. 20, inciso X, da Resolução CMN 4.192, de 01/03/2019 | AO18: Sempre será extinto na sua totalidade | AP18: Permanente | AR18: Contratual | AS18: Subordinado ao pagamento dos demais passivos da instituição emitente, com exceção do pagamento dos elementos que compõem o Capital Principal e o Capital Complementar. | AT18: Não | AU18: N/A
B19: 8 | D19: Sinosserra Financeira S/A | E19: LFSN2100E1Z | F19: Lei nº 12.249, de 11 de Junho de 2010 / Resolução CMN n° 4.955 de 21/10/2021 / Resolução CMN n° 5.007 de 24/3/2022 | H19: Nível II | I19: Não elegível | K19: Conglomerado | L19: Letra financeira | M19: 98,811.80 | O19: 300,000.00 | Q19: Passivo – custo amortizado | R19: 2021-12-23 | S19: Com vencimento | T19: 2026-12-23 | U19: Não | V19: N/A | W19: N/A | X19: Fixo | Z19: PRE 15% a.a | AA19: Não | AB19: Mandatório | AC19: Não | AD19: Cumulativo | AE19: Não conversível | AF19: N/A | AG19: N/A | AH19: N/A | AI19: N/A | AJ19: N/A | AK19: N/A | AL19: Sim | AM19: Serão extintos nas situações previstas no art. 20, inciso X, da Resolução CMN 4.192, de 01/03/2020 | AO19: Sempre será extinto na sua totalidade | AP19: Permanente | AR19: Contratual | AS19: Subordinado ao pagamento dos demais passivos da instituição emitente, com exceção do pagamento dos elementos que compõem o Capital Principal e o Capital Complementar. | AT19: Não | AU19: N/A

Sheet CC1
B7: Composição do Patrimônio de Referência - PR (CC1) | E7: Índice
B8: jun/2025 | D8: a | E8: b
B9: Número da linha | C9: Capital Principal: instrumentos e reservas | D9: Valor (R$ mil) | E9: Referência do balanço do conglomerado
B10: 1 | C10: Instrumentos Elegíveis ao Capital Principal | D10: =20000000/1000 -> 20,000 | E10: (a)
B11: 2 | C11: Reservas de lucros | D11: =(-1799466.67)/1000 -> (1,799) | E11: (b)
B12: 3 | C12: Outras receitas e outras reservas | D12: 0 | E12: (c)+(d)+(e)
B13: 5 | C13: Participação de não controladores nos instrumentos emitidos por subsidiárias do conglomerado prudencial e elegíveis ao seu Capital Principal | D13: =29922943.5/1000 -> 29,923
B14: 6 | C14: Capital Principal antes dos ajustes prudenciais | D14: =SUM(D10:D13) -> 48,123
B15: Número da linha | C15: Capital Principal: ajustes prudenciais | D15: Valor (R$ mil) | E15: Referência do balanço do conglomerado
B16: 7 | C16: Ajustes prudenciais relativos a apreçamentos de instrumentos financeiros (PVA) | D16: 0
B17: 8 | C17: Ágios pagos na aquisição de investimentos com fundamento em expectativa de rentabilidade futura | D17: 0
B18: 9 | C18: Ativos intangíveis | D18: =341378.4/1000 -> 341
B19: 10 | C19: Créditos tributários decorrentes de prejuízos fiscais e de base negativa de Contribuição Social sobre o Lucro Líquido e os originados dessa contribuição relativos a períodos de apuração encerrados até 31 de dezembro de 1998 | D19: 0
B20: 11 | C20: Ajustes relativos ao valor de mercado dos instrumentos financeiros derivativos utilizados para hedge de fluxo de caixa de itens protegidos cujos ajustes de marcação a mercado não são registrados contabilmente | D20: 0
B21: 15 | C21: Ativos atuariais relacionados a fundos de pensão de benefício definido | D21: 0
B22: 16 | C22: Ações ou outros instrumentos de emissão própria autorizados a compor o Capital Principal da instituição ou conglomerado, adquiridos diretamente, indiretamente ou de forma sintética | D22: 0
B23: 17 | C23: Valor total das deduções relativas às aquisições recíprocas de Capital Principal | D23: 0
B24: 18 | C24: Valor total das deduções relativas às participações líquidas não significativas em Capital Principal de instituições autorizadas a funcionar pelo Banco Central do Brasil e de instituições financeiras no exterior não consolidadas e em capital social de empresas assemelhadas a instituições financeiras não consolidadas, sociedades seguradoras, resseguradoras, de capitalização e entidades abertas de previdência complementar | D24: 0
B25: 19 | C25: Valor total das deduções relativas às participações líquidas significativas em Capital Principal de instituições autorizadas a funcionar pelo Banco Central do Brasil e de instituições financeiras no exterior não consolidadas e em capital social de empresas assemelhadas a instituições financeiras não consolidadas, sociedades seguradoras, resseguradoras, de capitalização e entidades abertas de previdência complementar, que exceda 10% do valor do Capital Principal da própria instituição ou conglomerado, desconsiderando deduções específicas | D25: 0
B26: 21 | C26: Valor total das deduções relativas aos créditos tributários decorrentes de diferenças temporárias que dependam de geração de lucros ou receitas tributáveis futuras para sua realização, que exceda 10% do Capital Principal da própria instituição ou conglomerado, desconsiderando deduções específicas
B27: 22 | C27: Valor que excede, de forma agregada, 15% do Capital Principal da própria instituição ou conglomerado | D27: 0
B28: 23 | C28: do qual: oriundo de participações líquidas significativas em Capital Principal de instituições autorizadas a funcionar pelo Banco Central do Brasil e de instituições financeiras no exterior não consolidadas e em capital social de empresas assemelhadas a instituições financeiras não consolidadas, de sociedades seguradoras, resseguradoras, de capitalização e de entidades abertas de previdência complementar | D28: 0
B29: 25 | C29: do qual: oriundo de créditos tributários decorrentes de diferenças temporárias que dependam de geração de lucros ou receitas tributáveis futuras para sua realização | D29: 0
B30: 26 | C30: Ajustes regulatórios nacionais | D30: 0
B31: 26.a | C31: Ativos permanentes diferidos | D31: 0
B32: 26.b | C32: Investimentos em dependências, instituições financeiras controladas no exterior ou entidades não financeiras que componham o conglomerado, em relação às quais o Banco Central do Brasil não tenha acesso a informações, dados e documentos | D32: 0
B33: 26.d | C33: Aumento de capital social não autorizado | D33: 0
B34: 26.e | C34: Excedente do valor ajustado de Capital Principal | D34: 0
B35: 26.f | C35: Depósito para suprir deficiência de capital | D35: 0
B36: 26.g | C36: Montante dos ativos intangíveis constituídos antes da entrada em vigor da Resolução nº 4.192, de 2013 | D36: 0
B37: 26.h | C37: Excesso dos recursos aplicados no Ativo Permanente | D37: 0
B38: 26.i | C38: Destaque do PR, conforme Resolução nº 4.589, de 29 de junho de 2017 | D38: 0
B39: 26.j | C39: Outras diferenças residuais relativas à metodologia de apuração do Capital Principal para fins regulatórios | D39: 0
B40: 27 | C40: Dedução aplicada ao Capital Principal decorrente de insuficiência de Capital Complementar e de Nível II para cobrir as respectivas deduções nesses componentes | D40: 0
B41: 28 | C41: Total de deduções regulatórias ao Capital Principal | D41: =SUM(D16:D40) -> 341
B42: 29 | C42: Capital Principal | D42: =D14-D41 -> 47,782
B43: Número da linha | C43: Capital Complementar: instrumentos | D43: Valor (R$ mil)
B44: 30 | C44: Instrumentos elegíveis ao Capital Complementar | D44: 0
B45: 31 | C45: dos quais: classificados como capital social conforme as regras contábeis | D45: 0
B46: 32 | C46: dos quais: classificados como passivo conforme as regras contábeis | D46: 0
B47: 33 | C47: Instrumentos autorizados a compor o Capital Complementar antes da entrada em vigor da Resolução nº 4.192, de 2013 | D47: 0
B48: 34 | C48: Participação de não controladores nos instrumentos emitidos por subsidiárias da instituição ou conglomerado e elegíveis ao seu Capital Complementar | D48: 0
B49: 35 | C49: da qual: instrumentos emitidos por subsidiárias antes da entrada em vigor da Resolução nº 4.192, de 2013 | D49: 0
B50: 36 | C50: Capital Complementar antes das deduções regulatórias | D50: 0
B51: Número da linha | C51: Capital Complementar: deduções regulatórias | D51: Valor (R$ mil)
B52: 37 | C52: Ações ou outros instrumentos de emissão própria autorizados a compor o Capital Complementar da instituição ou conglomerado, adquiridos diretamente, indiretamente ou de forma sintética | D52: 0
B53: 38 | C53: Valor total das deduções relativas às aquisições recíprocas de Capital Complementar | D53: 0
B54: 39 | C54: Valor total das deduções relativas aos investimentos líquidos não significativos em Capital Complementar de instituições autorizadas a funcionar pelo Banco Central do Brasil e de instituições financeiras no exterior não consolidadas | D54: 0
B55: 40 | C55: Valor total das deduções relativas aos investimentos líquidos significativos em Capital Complementar de instituições autorizadas a funcionar pelo Banco Central do Brasil e de instituições financeiras no exterior não consolidadas | D55: 0
B56: 41 | C56: Ajustes regulatórios nacionais | D56: 0
B57: 41.b | C57: Participação de não controladores no Capital Complementar | D57: 0
B58: 41.c | C58: Outras diferenças residuais relativas à metodologia de apuração do Capital Complementar para fins regulatórios | D58: 0
B59: 42 | C59: Dedução aplicada ao Capital Complementar decorrente de insuficiência de Nível II para cobrir a dedução nesse componente | D59: 0
B60: 43 | C60: Total de deduções regulatórias ao Capital Complementar | D60: =SUM(D52:D59) -> 0
B61: 44 | C61: Capital Complementar | D61: =D50-D60 -> 0
B62: 45 | C62: Nível I | D62: =D42+D61 -> 47,782
B63: Número da linha | C63: Nível II: instrumentos | D63: Valor (R$ mil) | E63: Referência do balanço do conglomerado
B64: 46 | C64: Instrumentos elegíveis ao Nível II | D64: =1647619.07/1000 -> 1,648
B65: 47 | C65: Instrumentos autorizados a compor o Nível II antes da entrada em vigor da Resolução nº 4.192, de 2013 | D65: 0
B66: 48 | C66: Participação de não controladores nos instrumentos emitidos por subsidiárias do conglomerado e elegíveis ao seu Nível II | D66: 0
B67: 49 | C67: da qual: instrumentos emitidos por subsidiárias antes da entrada em vigor da Resolução nº 4.192, de 2013 | D67: 0
B68: 51 | C68: Nível II antes das deduções regulatórias | D68: =SUM(D64:D67) -> 1,648
B69: Número da linha | C69: Nível II: deduções regulatórias | D69: Valor (R$ mil) | E69: Referência do balanço do conglomerado
B70: 52 | C70: Ações ou outros instrumentos de emissão própria, autorizados a compor o Nível II da instituição ou conglomerado, adquiridos diretamente, indiretamente ou de forma sintética | D70: 0
B71: 53 | C71: Valor total das deduções relativas às aquisições recíprocas de Nível II | D71: 0
B72: 54 | C72: Valor total das deduções relativas aos investimentos líquidos não significativos em instrumentos de Nível II e em instrumentos reconhecidos como TLAC emitidos por instituições autorizadas a funcionar pelo Banco Central do Brasil ou por instituições financeiras no exterior não consolidadas | D72: 0
B73: 55 | C73: Valor total das deduções relativas aos investimentos líquidos significativos em instrumentos de Nível II e em instrumentos reconhecidos como TLAC emitidos por instituições autorizadas a funcionar pelo Banco Central do Brasil ou por instituições financeiras no exterior não consolidadas | D73: 0
B74: 56 | C74: Ajustes regulatórios nacionais | D74: 0
B75: 56.b | C75: Participação de não controladores no Nível II | D75: 0
B76: 56.c | C76: Outras diferenças residuais relativas à metodologia de apuração do Nível II para fins regulatórios | D76: 0
B77: 57 | C77: Total de deduções regulatórias ao Nível II | D77: =SUM(D70:D76) -> 0
B78: 58 | C78: Nível II | D78: =D68-D77 -> 1,648
B79: 59 | C79: Patrimônio de Referência | D79: =D62+D78 -> 49,430
B80: 60 | C80: Total de ativos ponderados pelo risco (RWA) | D80: =234284827.13/1000 -> 234,285
B81: Número da linha | C81: Índices de Basileia e Adicional de Capital Principal | D81: %
B82: 61 | C82: Índice de Capital Principal (ICP) | D82: =D42/D80 -> 20.4%
B83: 62 | C83: Índice de Nível I (IN1) | D83: =D62/D80 -> 20.4%
B84: 63 | C84: Índice de Basileia (IB) | D84: =D79/D80 -> 21.1%
B85: 64 | C85: Percentual do adicional de Capital Principal (em relação ao RWA) | D85: =SUM(D86:D88) -> 2.5%
B86: 65 | C86: do qual: adicional para conservação de capital - ACPConservação | D86: 2.5%
B87: 66 | C87: do qual: adicional contracíclico - ACPContracíclico | D87: 0.0%
B88: 67 | C88: do qual: Adicional de Importância Sistêmica de Capital Principal - ACPSistêmico | D88: 0.0%
B89: 68 | C89: Capital Principal excedente ao montante utilizado para cumprimento dos requerimentos de capital, como proporção do RWA (%)
B90: Número da linha | C90: Valores abaixo do limite de dedução antes da aplicação de fator de ponderação de risco | D90: Valor (R$ mil) | E90: Referência do balanço do conglomerado
B91: 72 | C91: Valor total, sujeito à ponderação de risco, das participações não significativas em Capital Principal de instituições autorizadas a funcionar pelo Banco Central do Brasil e de instituições financeiras no exterior não consolidas e em capital social de empresas assemelhadas a instituições financeiras não consolidadas, sociedades seguradoras, resseguradoras, de capitalização e entidades abertas de previdência complementar, bem como dos investimentos não significativos em Capital Complementar, em instrumentos de Nível II e em instrumentos reconhecidos como TLAC emitidos por instituições financeiras autorizadas a funcionar pelo Banco Central do Brasil ou por instituições financeiras no exterior não consolidadas | D91: 0
B92: 73 | C92: Valor total, sujeito à ponderação de risco, das participações significativas em Capital Principal de instituições autorizadas a funcionar pelo Banco Central do Brasil e de instituições financeiras no exterior não consolidas e em capital social de empresas assemelhadas a instituições financeiras não consolidadas, sociedades seguradoras, resseguradoras, de capitalização e entidades abertas de previdência complementar | D92: 0
B93: 75 | C93: Valor total, sujeito à ponderação de risco, de créditos tributários decorrentes de diferenças temporárias que dependam de geração de lucros ou receitas tributáveis futuras para sua realização, não deduzidos do Capital Principal | D93: 0
B94: Número da linha | C94: Instrumentos autorizados a compor o PR antes da entrada em vigor da Resolução nº 4.192, de 2013 (aplicável entre 1º de janeiro de 2018 e 1º de janeiro de 2022) | D94: Valor (R$ mil) | E94: Referência do balanço do conglomerado
B95: 82 | C95: Limite atual para os instrumentos autorizados a compor o Capital Complementar antes da entrada em vigor da Resolução nº 4.192, de 2013 | D95: 0
B96: 83 | C96: Valor excluído do Capital Complementar devido ao limite da linha 82 | D96: 0
B97: 84 | C97: Limite atual para os instrumentos autorizados a compor o Nível II antes da entrada em vigor da Resolução nº 4.192, de 2013 | D97: 0
B98: 85 | C98: Valor excluído do Nível II devido ao limite da linha 84 | D98: 0

Sheet CC2
F1: Financeira | G1: Conglomerado
F2: 350,194,493.36 | G2: 1,075,252,241.98
F3: -188,487,448.02 | G3: -886,540,222.22
F4: =SUM(F2:F3) -> 161,707,045.34 | G4: =SUM(G2:G3) -> 188,712,019.76
B7: Conciliação do Patrimônio de Referência (PR) com o balanço patrimonial (CC2) | E7: Índice
B10: Balanço Patrimonial Consolidado - Junho/2025
B12: R$ mil | C12: a | D12: b | E12: c
B13: ATIVO | C13: Valores do balanço patrimonial no final do período | D13: Valores considerados para fins da regulamentação prudencial no final do período | E13: Referência no balanço do conglomerado
B14: Caixa e equivalentes a caixa | C14: =1247215.19/1000 -> 1,247 | D14: =1299083.96/1000 -> 1,299
B15: Instrumentos financeiros | C15: =SUM(C16:C21) -> 195,774 | D15: =SUM(D16:D21) -> 198,665
B16: Aplicações interfinanceiras de liquidez
B17: Depósitos compulsórios no Banco Central do Brasil | C17: 0 | D17: 0
B18: Títulos e valores mobiliários | C18: =23587166.5/1000 -> 23,587 | D18: =26478095.62/1000 -> 26,478
B19: Instrumentos financeiros derivativos | C19: 0 | D19: 0
B20: Operações de crédito | C20: =167186839.47/1000 -> 167,187 | D20: =167186839.47/1000 -> 167,187
B21: Outros Instrumentos financeiros | C21: =5000000/1000 -> 5,000 | D21: =5000000/1000 -> 5,000
B22: Operações de arrendamento mercantil | D22: 0
B23: Provisões para perdas esperadas associadas ao risco de crédito | D23: =SUM(D24:D26) -> 0
B24: Operações de crédito
B25: Operações de arrendamento mercantil
B26: Outros créditos
B27: Créditos tributários | C27: =(4132448.2+195739.14)/1000 -> 4,328 | D27: =(4257796.45+722233.16+312195.5)/1000 -> 5,292
B28: Investimentos em participações em coligadas e controladas
B29: Imobilizado de uso | C29: =(211154.86)/1000 -> 211 | D29: =(3220+1029583.99+162000)/1000 -> 1,195
B30: Intangível | C30: =(651981.45+60000)/1000 -> 712 | D30: =(663828.12+8350+60000)/1000 -> 732
B31: Depreciações e amortizações | C31: =SUM(C32:C33) -> (503) | D31: =SUM(D32:D33) -> (1,165)
B32: Imobilizado de uso | C32: =-125527.7/1000 -> (126) | D32: =-774592.02/1000 -> (775)
B33: Intangível | C33: =-377165.97/1000 -> (377) | D33: =(-10880.52-379919.2)/1000 -> (391)
B34: Outros ativos | C34: =(2694817.35)/1000-1 -> 2,694 | D34: =(256635.45+401.45+697716.07+108498.04+28272121.47+959776.61)/1000 -> 30,295
B35: Provisões para redução ao valor recuperável de ativos
B36: Total | C36: =C14+C15+C22+C23+C27+C28+C29+C30+C31+C34+C35 -> 204,464 | D36: =D14+D15+D22+D23+D27+D28+D29+D30+D31+D34+D35 -> 236,313
C37: Valores do balanço patrimonial no final do período | D37: Valores considerados para fins da regulamentação prudencial no final do período | E37: Referência no balanço do conglomerado
B38: PASSIVO
B39: Depósitos e demais instrumentos financeiros | C39: =SUM(C40:C45) -> 182,608 | D39: =SUM(D40:D45) -> 182,608
B40: Recursos de instituições financeiras
B41: Recursos de clientes
B42: Recursos de emissão de títulos | C42: =(182607514.94)/1000 -> 182,608 | D42: =(182607514.94)/1000 -> 182,608
B43: Dívidas subordinadas
B44: Instrumentos financeiros derivativos
B45: Outros passivos financeiros
B46: Provisões | C46: =SUM(C47:C48) -> 0 | D46: =SUM(D47:D48) -> 0
B47: Provisões técnicas de seguros e previdência
B48: Outras provisões
B49: Obrigações fiscais diferidas
B50: Outros passivos | C50: =(3512054.46+144565.76)/1000-1 -> 3,656 | D50: =(188189506.8-182607514.94)/1000 -> 5,582
B51: Total do passivo | C51: =C39+C45+C49+C50 -> 186,263 | D51: =D39+D46+D49+D50 -> 188,190
B52: Patrimônio líquido | C52: =SUM(C53:C59) -> 18,201 | D52: =SUM(D53:D59) -> 48,123
B53: Capital social | C53: =20000000/1000 -> 20,000 | D53: =24500000/1000 -> 24,500 | E53: (a)
B54: do qual: montante elegível para Capital Principal
B55: do qual: montante elegível para Capital Complementar
B56: Reserva de Capital | D56: =381971.88/1000 -> 382 | E56: (d)
B57: Reservas de lucros | C57: 0 | D57: =9750773.64/1000 -> 9,751 | E57: (b)
B58: Outros resultados abrangentes | E58: (e)
B59: Lucros ou prejuízos acumulados | C59: =-1799466.67/1000 -> (1,799) | D59: =13490731.31/1000 -> 13,491
B60: Ações em Tesouraria
B61: Patrimônio líquido atribuído aos acionistas controladores
B62: Participação minoritária nas controladas autorizadas pelo Bacen
B63: Total do patrimônio líquido | C63: =C52+C61+C62 -> 18,201 | D63: =D52+D61+D62 -> 48,123
B64: Total do passivo e patrimônio líquido | C64: =C51+C63 -> 204,464 | D64: =D51+D63 -> 236,313
D65: =D64-D36 -> 0
C66: Valores considerados para fins da regulamentação prudencial no final do período | D66: Referência no balanço do conglomerado
B67: R$ milhões Contas de compensação
B68: Participação superiores a 10% do Cap. Social de Entidades Controladas não Sujeitas à Autorização do Bacen | C68: 0
B69: Créditos tributários de diferença temporária | C69: =4257796.46/1000 -> 4,258
B70: Créditos tributários de prejuízo fiscal acumulado | D70: (f)

Sheet Plan2 (hidden)

Sheet BP Prudencial (hidden)
B2: SINOSSERRA FINANCEIRA S/A – SOCIEDADE DE CRÉDITO, FINANCIAMENTO E INVESTIMENTO
B4: Novo Hamburgo - RS
B6: Balanço Patrimonial
B8: Ativo
M10: Em Milhares de Reais
M12: Líder | R12: Prudencial
M13: 30 de | O13: 31 de | R13: 30 de | T13: 31 de
M14: Junho | O14: Dezembro | R14: Junho | T14: Dezembro | Z14: Variação DFC <>
I15: Nota | M15: de 2022 | O15: de 2021 | R15: de 2022 | T15: de 2021
A17: Circulante | B17: Circulante | M17: 54,118 | O17: 112,711 | R17: 70,612 | T17: 135,666
A19: Disponibilidades | D19: Disponibilidades | M19: 138 | O19: 681 | R19: 168 | T19: 696 | Z19: 543
C21: Títulos e Valores Mobiliários e Instrumentos Financeiros Derivativos | M21: 13,282 | O21: 66,303 | R21: 27,450 | T21: 87,356 | Z21: 53,021
A23: Carteira Própria | D23: Carteira Própria | M23: 13,282 | O23: 66,303 | R23: 27,450 | T23: 87,356
C25: Operações de Crédito | M25: 37,810 | O25: 43,428 | R25: 37,810 | T25: 43,428
A27: Setor Privado | D27: Setor Privado | M27: 41,107 | O27: 46,412 | R27: 41,107 | T27: 46,412 | Z27: 5,305
A28: (-) Provisão p/Créditos em Liquidação Duvidosa | D28: (-) Provisão p/Créditos em Liquidação Duvidosa | M28: (3,297) | O28: (2,984) | R28: (3,297) | T28: (2,984) | Z28: 313
C30: Outros Créditos | M30: 2,449 | O30: 2,802 | R30: 4,701 | T30: 3,714
D32: Diversos | M32: 2,449 | O32: 1,876 | R32: 4,701 | T32: 3,714 | Z32: (573)
A34: Serviços Prestados a Receber | E34: Rendas a Receber | M34: 0 | O34: 0 | R34: 114 | T34: 93
A35: Créditos Tributários | E35: Créditos Tributários | M35: 1,824 | O35: 1,824 | R35: 2,430 | T35: 2,094 | Z35: 0
A36: Devedores Diversos | E36: Devedores Diversos - País | M36: 567 | O36: 4 | R36: 2,000 | T36: 1,385
A37: Outros | E37: Outros | M37: 58 | O37: 48 | R37: 157 | T37: 142
C39: Outros Valores e Bens | M39: 439 | O39: 423 | R39: 483 | T39: 472 | Z39: (16)
A41: Outros valores e bens | D41: Outros valores e bens | M41: 364 | O41: 327 | R41: 364 | T41: 327
A42: Despesas Antecipada | D42: Despesas Antecipada | M42: 75 | O42: 96 | R42: 119 | T42: 145
B44: Realizável a Longo Prazo | M44: 84,699 | O44: 89,209 | R44: 111,998 | T44: 136,408
C46: Operações de Crédito | M46: 84,699 | O46: 88,793 | R46: 84,699 | T46: 88,793
D48: Setor Privado | M48: 85,290 | O48: 89,659 | R48: 85,290 | T48: 89,659 | Z48: 4,369
D49: (-) Provisão p/Créditos em Liquidação Duvidosa | M49: (591) | O49: (866) | R49: (591) | T49: (866) | Z49: (275)
C52: Outros Créditos | M52: 0 | O52: 0 | R52: 27,299 | T52: 47,615
A54: Créditos Tributários RLP | D54: Créditos Tributários | M54: 0 | O54: 0 | R54: 269 | T54: 292 | Z54: 0
A55: Diversos RLP | D55: Diversos | M55: 0 | O55: 0 | R55: 27,030 | T55: 47,323 | Z55: 0
C57: Investimentos | M57: 0 | O57: 0 | R57: 4,585 | T57: 4,624
A59: Imóveis | D59: Imóveis | M59: 0 | O59: 0 | R59: 4,585 | T59: 4,624 | Z59: 0
A61: Permanente | B61: Permanente | M61: 393 | O61: 416 | R61: 953 | T61: 961
C63: Imobilizado de Uso | M63: 127 | O63: 129 | R63: 679 | T63: 665
A65: Imobilizado em Uso | D65: Outras Imobilizações de Uso | M65: 175 | O65: 162 | R65: 1,363 | T65: 1,284 | Z65: (13)
A66: (-) Depreciação Acumulada | D66: (-) Depreciação Acumulada | M66: (48) | O66: (33) | R66: (684) | T66: (619) | Z66: 15
C68: Intangível | M68: 266 | O68: 287 | R68: 274 | T68: 296
A70: Intangível | D70: Ativos Intangíveis | M70: 356 | O70: 356 | R70: 368 | T70: 368 | Z70: 0
A71: (-) Amortização Acumulada | D71: (-) Amortização Acumulada | M71: (90) | O71: (69) | R71: (94) | T71: (72) | Z71: 21
A73: Total do Ativo | B73: Total do Ativo | M73: 139,210 | O73: 201,920 | R73: 188,148 | T73: 277,659
B76: SINOSSERRA FINANCEIRA S/A – SOCIEDADE DE CRÉDITO, FINANCIAMENTO E INVESTIMENTO
B78: Novo Hamburgo - RS
B80: Passivo e Patrimônio Líquido
B82: Passivo
M84: Em Milhares de Reais
M86: Líder | R86: Prudencial
M87: 30 de | O87: 31 de | R87: 30 de | T87: 31 de
M88: Junho | O88: Dezembro | R88: Junho | T88: Dezembro
M89: de 2022 | O89: de 2021 | R89: de 2022 | T89: de 2021
A91: Circulante | B91: Circulante | M91: 51,871 | O91: 111,418 | R91: 82,112 | T91: 151,317
C93: Depósitos | M93: 19,405 | O93: 41,664 | R93: 19,405 | T93: 41,664 | Z93: (22,259)
A95: Depósito Interfinanceiro | D95: Depósito Interfinanceiro | M95: 10,783 | O95: 12,996 | R95: 10,783 | T95: 12,996
A96: Depósitos a prazo | D96: Depósitos a prazo | M96: 8,622 | O96: 28,668 | R96: 8,622 | T96: 28,668
C98: Recurso de aceite cambial e emissão de títulos | M98: 30,674 | O98: 60,578 | R98: 30,674 | T98: 60,578 | Z98: (29,904)
D100: Recurso de aceite cambial | M100: 30,674 | O100: 60,578 | R100: 30,674 | T100: 60,578
D101: Recurso de letras financeiras | R101: 0 | T101: 0
C103: Outras Obrigações | M103: 1,792 | O103: 9,176 | R103: 32,033 | T103: 49,075 | Z103: (7,384)
A105: Cobrança e Arrecadação de Tributos e Assemelhados | D105: Cobrança e Arrecadação de Tributos e Assemelhados | M105: 75 | O105: 5,022 | R105: 75 | T105: 5,022
A106: Sociais e Estatutárias | D106: Sociais e Estatutárias | M106: 0 | O106: 803 | R106: 404 | T106: 1,097
A107: Fiscais e Previdenciárias - CP | D107: Fiscais e Previdenciárias | M107: 119 | O107: 1,857 | R107: 635 | T107: 2,271
A108: Passivo - Diversas CP | D108: Diversas | M108: 1,598 | O108: 1,494 | R108: 30,919 | T108: 40,685
A110: Exigível a Longo Prazo | B110: Exigível a Longo Prazo | M110: 73,543 | O110: 90,502 | R110: 73,716 | T110: 90,950
C112: Depósitos | M112: 51,998 | O112: 47,449 | R112: 51,998 | T112: 47,449 | Z112: 4,549
D114: Depósito Interfinanceiro | M114: 0 | O114: 2,512 | R114: 0 | T114: 2,512
D115: Depósitos a prazo | M115: 51,998 | O115: 44,937 | R115: 51,998 | T115: 44,937
C117: Recurso de aceite cambial e emissão de títulos | M117: 21,021 | O117: 25,697 | R117: 21,021 | T117: 25,697 | Z117: (4,676)
D119: Recurso de aceite cambial | M119: 15,638 | O119: 20,679 | R119: 15,638 | T119: 20,679
D120: Recurso de letras financeiras | M120: 5,383 | O120: 5,018 | R120: 5,383 | T120: 5,018
C122: Outras Obrigações | M122: 0 | O122: 0 | R122: 173 | T122: 17,571 | Z122: 0
A124: Créditos Tributários Passivo | D124: Créditos Tributários | M124: 0 | O124: 0 | R124: 173 | T124: 187
A125: Diversas | D125: Diversos | M125: 0 | O125: 0 | R125: 0 | T125: 17,384
C128: Resultado de exercício futuro | M128: 524 | O128: 233 | R128: 524 | T128: 233
A130: Passivo - Diversas LP | D130: Resultado de exercício futuro | M130: 524 | O130: 233 | R130: 524 | T130: 233 | Z130: 291
A132: Patrimônio Líquido | B132: Patrimônio Líquido | M132: 13,796 | O132: 17,123 | R132: 32,320 | T132: 35,392 | Z132: (3,327)
C134: Capital
A135: Capital | D135: De Domiciliados no País | M135: 11,000 | O135: 11,000 | R135: 11,000 | T135: 11,000 | Z135: 0
A136: Reserva de Lucros | C136: Reservas de Lucros | M136: 2,796 | O136: 6,123 | R136: 2,796 | T136: 6,123 | Z136: (3,327)
C138: Participação de Não Controladores | M138: 0 | O138: 0 | R138: 18,524 | T138: 18,269
A140: Total do Passivo | B140: Total do Passivo | M140: 139,210 | O140: 201,920 | R140: 188,148 | T140: 277,659
T142: 7
B143: SINOSSERRA FINANCEIRA S/A – SOCIEDADE DE CRÉDITO, FINANCIAMENTO E INVESTIMENTO
B145: Novo Hamburgo - RS
B147: Demonstração do Resultado
K149: Em Milhares de Reais | Z149: DRE
M151: Líder | R151: Prudencial
M152: 30 de | O152: 30 de | R152: 30 de | T152: 30 de | Z152: 30 de
M153: Junho | O153: Junho | R153: Junho | T153: Junho | Z153: Junho
M154: de 2022 | O154: de 2021 | R154: de 2022 | T154: de 2021 | Z154: de 2022
B156: Receitas de Intermediação Financeira | M156: 12,003 | O156: 9,858 | R156: 13,122 | T156: 10,085
A158: Operações de Crédito | C158: Operações de Crédito | M158: 12,559 | O158: 9,680 | R158: 12,559 | T158: 9,680
A159: Resultado de Operações com Títulos e Valores Mobiliários | C159: Resultado de Operações com Títulos e Valores Mobiliários | M159: (556) | O159: 178 | R159: 563 | T159: 405
B161: Despesas da Intermediação Financeira | M161: (9,433) | O161: (4,212) | R161: (9,433) | T161: (4,212)
A163: Operações de Captação no Mercado | C163: Operações de captações de mercado | M163: (10,538) | O163: (3,117) | R163: (10,538) | T163: (3,117)
A164: Provisão para Créditos de Liquidação Duvidosa | C164: Provisão para Créditos de Liquidação Duvidosa | M164: 1,105 | O164: (1,095) | R164: 1,105 | T164: (1,095)
B166: Resultado Bruto da Intermediação Financeira | M166: 2,570 | O166: 5,646 | R166: 3,689 | T166: 5,873
B168: Outras Despesas/Receitas Operacionais | M168: (5,874) | O168: (3,597) | R168: (6,644) | T168: (1,374)
A170: Receitas de Prestação de Serviços | C170: Receitas de Prestação de Serviços | M170: 2,044 | O170: 1,588 | R170: 11,452 | T170: 11,545
A171: Despesas de Pessoal | C171: Despesas de Pessoal | M171: (1,150) | O171: (576) | R171: (3,370) | T171: (2,670)
A172: Outras Despesas Administrativas | C172: Outras Despesas Administrativas | M172: (7,225) | O172: (3,764) | R172: (12,935) | T172: (8,737)
A173: Despesas Tributárias | C173: Despesas Tributárias | M173: (523) | O173: (468) | R173: (1,987) | T173: (1,997)
A174: Outras Receitas/(Despesas) | B174: Outras Receitas/(Despesas) | C174: Outras Despesas/Receitas Operacionais | M174: 980 | O174: (377) | R174: 196 | T174: 485
B176: Resultado Operacional | M176: (3,304) | O176: 2,049 | R176: (2,955) | T176: 4,499
A178: Receitas não operacionais | B178: Receitas não operacionais | M178: 0 | O178: 86 | R178: 19 | T178: 157
B180: Resultado Antes da Tributação s/Lucro
B181: e Participações | M181: (3,304) | O181: 2,135 | R181: (2,936) | T181: 4,656
B183: Imposto de renda e contribuição social | M183: 0 | O183: (1,162) | R183: (113) | T183: (1,991)
A185: Imposto de Renda e Contribuição Social - Corrente | B185: Imposto de Renda e Contribuição Social - Corrente | M185: 0 | O185: (714) | R185: (113) | T185: (1,543)
A186: Imposto de Renda e Contribuição Social - Diferido | B186: Imposto de Renda e Contribuição Social - Diferido | M186: 0 | O186: (448) | R186: 0 | T186: (448)
A188: Participação do Resultado | B188: Participação do Resultado | M188: (23) | O188: (5) | R188: (23) | T188: (5)
B190: Lucro Líquido do Período | M190: (3,327) | O190: 968 | R190: (3,072) | T190: 2,660
C192: Lucro por Lote de 1.000 Ações | M192: (0.30) | O192: 0.09 | R192: (0.20) | T192: 0.17
B194: Demonstração do Resultado Abrangente
K196: Em Milhares de Reais
M198: Líder | R198: Prudencial
M199: 30 de | O199: 30 de | R199: 30 de | T199: 30 de
K200: 2° Semestre | M200: Junho | O200: Junho | R200: Junho | T200: Junho
K201: 1905-07-13 | M201: de 2022 | O201: de 2021 | R201: de 2022 | T201: de 2021
B203: Outros Resultados Abrangentes que serão reclassificados para o resultado do período: | M203: (3,327) | O203: 968 | R203: (3,072) | T203: 2,660
C205: Movimentação do Período | K205: 0 | M205: 0 | O205: 0 | R205: 0 | T205: 0
B207: Resultado Abrangente do Período | M207: (3,327) | O207: 968 | R207: (3,072) | T207: 2,660
T209: 9
B210: SINOSSERRA FINANCEIRA S/A – SOCIEDADE DE CRÉDITO, FINANCIAMENTO E INVESTIMENTO
B212: Novo Hamburgo - RS
B214: Demonstração dos Fluxos (Método Indireto) de Caixa
K216: Em Milhares de Reais
M218: Líder | R218: Prudencial
M219: 30 de | O219: 30 de | R219: 30 de | T219: 30 de
K220: 2° Semestre | M220: Junho | O220: Junho | R220: Junho | T220: Junho
K221: de 2021 | M221: de 2022 | O221: de 2021 | R221: de 2022 | T221: de 2021
B223: Fluxos de Caixa das Atividades Operacionais
C224: Lucro Líquido antes do Imposto de Renda e Contribuição Social | M224: (3,304) | O224: 2,135 | R224: (2,936) | T224: 4,656
D225: Provisão para Perdas com Créditos de Liquidação Duvidosa | M225: 38 | O225: 294 | R225: 38 | T225: 294
D226: Participação nos Resultado | M226: (23) | O226: (5) | R226: (23) | T226: (5)
A227: Depreciações e Amortizações | D227: Depreciações e Amortizações | M227: 36 | O227: 10 | R227: 88 | T227: 43
A228: Baixa Investimentos | D228: Baixa Investimentos | M228: 0 | O228: 0 | R228: 174 | T228: 120
A229: Baixas Imobilizado | D229: Baixas Imobilizado | M229: 0 | O229: 0 | R229: 0 | T229: 39
A230: Provisão para Contingências Trabalhistas | D230: Provisão para Contingências Trabalhistas | M230: 0 | O230: 0 | R230: (68) | T230: (236)
A231: Imposto Diferido a Compensar | D231: Imposto Diferido a Compensar | M231: 0 | O231: 0 | R231: 23 | T231: (65)
A232: Provisão para Impostos Diferidos | D232: Provisão para Impostos Diferidos | M232: 0 | O232: 0 | R232: (14) | T232: (13)
M234: (3,253) | O234: 2,434 | R234: (2,718) | T234: 4,833
C236: IR e CS Pagos | M236: 0 | O236: (1,293) | R236: (113) | T236: (2,122)
B238: (Aumento)/Redução dos Ativos
A239: Títulos e Valores Mobiliários | D239: Títulos e Valores Mobiliários | M239: 53,021 | O239: 8,703 | R239: 64,072 | T239: 8,703
D240: Operações de Crédito | M240: 9,674 | O240: (13,443) | R240: 9,674 | T240: (13,443)
A241: Rendas a Receber | D241: Rendas a Receber | M241: 0 | O241: 0 | R241: (21) | T241: 156
A242: Créditos Tributários | D242: Créditos Tributários | M242: 0 | O242: 0 | R242: (335) | T242: 189
A243: Diversos | D243: Diversos | M243: 0 | O243: 0 | R243: 2,857 | T243: 1,472
A244: Despesas Antecipada | D244: Despesas Antecipadas | M244: 0 | O244: 0 | R244: 5 | T244: (19)
A245: Outros Créditos | D245: Outros Créditos | M245: (573) | O245: 835 | R245: (578) | T245: 853
D246: Outros Valores e Bens | M246: (16) | O246: (156) | R246: (16) | T246: (156)
B248: Aumento/(Redução) dos Passivos
D249: Depósitos | M249: (17,710) | O249: (3,194) | R249: (17,710) | T249: (3,194)
D250: Recurso de aceite cambial e emissão de títulos | M250: (34,580) | O250: 7,026 | R250: (34,580) | T250: 7,026
A251: Fiscais e Previdenciárias | D251: Fiscais e Previdenciárias | M251: 0 | O251: 0 | R251: 102 | T251: (39)
A252: Sociais e Estatutárias | D252: Sociais e Estatutárias | M252: 0 | O252: 0 | R252: 109 | T252: 114
A253: Diversas | D253: Diversas | M253: 0 | O253: 0 | R253: (9,802) | T253: (341)
D254: Outras Obrigações | M254: (7,093) | O254: (952) | R254: (7,093) | T254: (952)
B256: Caixa Liquido Proveniente das Atividades Operacionais
M257: (530) | O257: (40) | R257: 3,853 | T257: 3,080
B258: Fluxos de Caixa das Atividades de Investimento
A260: Aquisição de Imobilizado de Uso | C260: Aquisição de Imobilizado de Uso | M260: (13) | O260: (19) | R260: (80) | T260: (74)
A261: Aquisição de Investimentos | C261: Aquisição de Investimentos | M261: 0 | O261: 0 | R261: (135) | T261: (120)
B263: Caixa Líquido Utilizado nas Atividades de Investimento
M264: (13) | O264: (19) | R264: (215) | T264: (194)
B265: Fluxos de Caixa das Atividades de Financiamento
A267: Dividendos Propostos/Pagar | C267: Dividendos Propostos/Pagar | M267: 0 | O267: 0 | R267: 0 | T267: (570)
C268: Dividendos Distribuídos
C269: Dividendos Adicionais - Exercício de 2019
C270: Juros s/ Capital Próprio Pagos
C271: Efeito tributário dos Juros s/Capital Próprio
B273: Caixa Líquido Utilizado nas Atividades de Financiamento | M273: 0 | O273: 0 | R273: 0 | T273: (570)
B275: Aumento/(Redução) de Caixa e Equivalentes de Caixa | K275: 0 | M275: (543) | O275: (59) | R275: 3,638 | T275: 2,316
C277: Caixa e Equivalentes de Caixa no Início do Período | K277: 17,258 | M277: 681 | O277: 642 | R277: 10,698 | T277: 16,379
C278: Caixa e Equivalentes de Caixa no Final do Período | K278: 25,662 | M278: 138 | O278: 583 | R278: 14,336 | T278: 18,695
K280: Check DFC
H281: Variação caixa | K281: 8,404 | M281: (543) | O281: (59) | R281: 3,638 | T281: 2,316
H282: Movimentação | K282: 0 | M282: (543) | O282: (59) | R282: 3,638 | T282: 2,316
H283: Variação caixa - mov. | K283: -8,404 | M283: 0 | N283: 0 | O283: (0) | R283: 0 | S283: 0 | T283: (0)

Sheet PL Adm (hidden)
A1: Patrimônio Líquido | E1: =SUM(E2:E5) -> 18524
B2: Capital Social | E2: 4500
B3: Reserva de Capital | E3: 510
B4: Reservas de Lucros | E4: 13642
B5: Ações em Tesouraria | E5: -128
